{"text_format":"3","workbook":"xlsx","n_sheets":4,"sheets":["Свод  олим.","сравн.анализ","Путь к Олимп.","регион.этап"],"not_rendered":{"external_links":4},"read":"whole","date_system":"1900"}

{"sheet":"Свод  олим.","index":0,"n_rows":351,"n_cols":8,"rows_kept":351,"merged":[[0,0,0,7],[4,0,21,0],[22,0,28,0],[29,0,46,0],[47,0,50,0],[52,0,68,0],[69,0,71,0],[72,0,87,0],[88,0,110,0],[111,0,117,0],[118,0,151,0],[152,0,166,0],[167,0,177,0],[178,0,193,0],[194,0,210,0],[211,0,227,0],[228,0,258,0],[259,0,279,0],[280,0,292,0],[293,0,295,0],[296,0,343,0],[344,1,344,7],[345,1,345,7],[346,1,346,7],[347,1,347,7],[348,1,348,7]]}
["Список победителей и призеров  муниципального этапа всероссийской и республиканской олимпиады 2020/2021 учебного года  "]
[]
["предмет (поб/приз)","Полное наименование образовательного учреждения (по уставу)","Фамилия","Имя","Отчество","Класс","Статус (победитель/призер)","Фамилия педагога, подготовившего, участника олимпиады)"]
["Астрономия  1/0                             участников -5","МБОУ \"Князевская СОШ\"","Файрушин","Камиль","Илдарович",7,"победитель","Якушева Валентина Николаевна"]
["Математика 6\\12         Участников-129","МБОУ \"Нижнесуыксинская СОШ\" ","Иванов","Богдан","Спартакович",4,"победитель","Сафина Рушания Ривкатовна"]
[null,"МБОУ \"Комсомольская СОШ\"","Колычев","Юрий","Александрович",5,"победитель","Гайнеева Дилузя Фаткылкадировна"]
[null,"МБОУ \"Нижнесуыксинская СОШ\"","Тимуршин","Ильдан","Ильдарович",6,"победитель","Суюндукова Фирдаусь Наиловна"]
[null,"МБОУ \"Бетькинская СОШ\"","Панкратов","Данил","Генадьевич",7,"победитель","Галяутдинова Гульфия Асватовна "]
[null,"МБОУ \"СОШ п.Круглое Поле\"","Гусев ","Вадим","Дмитриевич",10,"победитель","Сафина Татьяна Владимировна"]
[null,"МБОУ \"Нижнесуыксинская СОШ\"","Фардиев","Раиль","Рамилевич",11,"победитель","Суюндукова Фирдаусь Наиловна"]
[null,"МБОУ \"Князевская СОШ\" ","Абсалямова","Дамира","Айдаровна",4,"призер","Яруллина ЛайсанМударисовна"]
[null,"МБОУ \"Князевская СОШ\" ","Хазимуллин","Радмир","Ринатович",4,"призер","Асылмарданова Анна Николаевна"]
[null,"МБОУ \"Кузкеевская СОШ\"","Нуриев","Рифат","Зульфатович",5,"призер","Нуриева Гульназ Искандаровна"]
[null,"МБОУ \"Мелекесская СОШ\"","Копьева","Дарья","Ивановна",5,"призер","Солдатова Татьяна Павловна"]
[null,"МБОУ \"Мелекесская СОШ\"","Яхин ","Сулейман","Ильназович",5,"призер","Солдатова Татьяна Павловна"]
[null,"МБОУ \"Тлянче-Тамакская СОШ\"","Заирфуллина","Ильяна","Ильяровна",5,"призер","Бурганова Ильмира Музиповна"]
[null,"МБОУ \"Яна Булякская ООШ\"   ","Мингалиев","Амир","Айдарович",6,"призер","Ахметшин Ясир Таепович"]
[null,"МБОУ \"Семекеевская ООШ\"","Абзалутдинова","Эльза","Василевна",6,"призер","Накипова Дамира Назиповна"]
[null,"МБОУ \"Нижнесуыксинская СОШ\"","Ганиева","Сюмбель","Айнуровна",6,"призер","Суюндукова Фирдаусь Наиловна"]
[null,"МБОУ \"Князевская СОШ\" ","Елкин","Родион","Олегович",6,"призер","Сайфетдинова ГульнараВасилевна"]
[null,"МБОУ \" Иштеряковская ООШ\"","Губайдуллина","Эльвина","Ильнаровна",7,"призер","Идрисова Илхамия Раисовна"]
[null,"МБОУ \"Мелекесская СОШ\"","Усманов","Андрей","Артурович",7,"призер","Солдатова Татьяна Павловна"]
["Экология 3/4   участников-34","МБОУ \"Малошильнинская СОШ\"","Алиулова","Чулпан","Маратовна",7,"победитель","Мифтахова Зульфия Рустамовна"]
[null,"МБОУ \"СОШ П Новый\"","Янгиров","Альмир","Равшанович",8,"победитель","Миннигулова Гульнара Рафиковна"]
[null,"МБОУ \"Шильнебашская СОШ  \"","Сафарова","Аделина","Алексеевна",9,"победитель","Кызыма Елена Александровна"]
[null,"МБОУ \"Калмашская СОШ\"","Нурутдинова","Алия","Нурзинатовна",7,"призер","Кашапова Роза Дамировна"]
[null,"МБОУ \"Шильнебашская СОШ  \"","Бураев","Алексей","Геннадиевич",8,"призер","Кызыма Елена Александровна"]
[null,"МБОУ \"СОШ П Новый\"","Комаров","Михаил","Андреевич",8,"призер","Миннигулова Гульнара Рафиковна"]
[null,"МБОУ \"Шильнебашская СОШ  \"","Хуснекаева","Стелла","Денисовна",7,"призер","Кызыма Елена Александровна"]
["Русский язык (р.ш.) 6/12                      участников -74","МБОУ \"Калмашская СОШ\"","Шамитова","Иделия","Альбертовна",5,"победитель",{"$f":"'[1]русский язык(р.ш.)'!$O$17","v":"Хайруллина Гульназ Фирдусовна"}]
[null,{"$f":"'[1]русский язык(р.ш.)'!C36","v":"МБОУ \"Новотроицкая СОШ\""},{"$f":"'[1]русский язык(р.ш.)'!D36","v":"Турханова"},{"$f":"'[1]русский язык(р.ш.)'!E36","v":"Радна"},{"$f":"'[1]русский язык(р.ш.)'!F36","v":"Ридаловна"},{"$f":"'[1]русский язык(р.ш.)'!G36","v":6},"победитель",{"$f":"'[1]русский язык(р.ш.)'!$O$36","v":"Зарипова Наталья Владимировна"}]
[null,{"$f":"'[1]русский язык(р.ш.)'!C52","v":"МБОУ \"Мелекесская СОШ\""},{"$f":"'[1]русский язык(р.ш.)'!D52","v":"Черемных"},{"$f":"'[1]русский язык(р.ш.)'!E52","v":"Лиана"},{"$f":"'[1]русский язык(р.ш.)'!F52","v":"Александровна"},{"$f":"'[1]русский язык(р.ш.)'!G52","v":7},"победитель",{"$f":"'[1]русский язык(р.ш.)'!$O$52","v":"Кузнецова Ирина Николаевна"}]
[null,{"$f":"'[1]русский язык(р.ш.)'!C54","v":"МБОУ \"Бетькинская СОШ\""},{"$f":"'[1]русский язык(р.ш.)'!D54","v":"Стрыгина "},{"$f":"'[1]русский язык(р.ш.)'!E54","v":"Алиса"},{"$f":"'[1]русский язык(р.ш.)'!F54","v":"Витальевна"},{"$f":"'[1]русский язык(р.ш.)'!G54","v":8},"победитель",{"$f":"'[1]русский язык(р.ш.)'!$O$54","v":"Лысенкова Светлана Лукьяновна "}]
[null,{"$f":"'[1]русский язык(р.ш.)'!C66","v":" МБОУ«Малошильнинская СОШ\""},{"$f":"'[1]русский язык(р.ш.)'!D66","v":"Александрова "},{"$f":"'[1]русский язык(р.ш.)'!E66","v":"Ирина"},{"$f":"'[1]русский язык(р.ш.)'!F66","v":"Витальевна"},{"$f":"'[1]русский язык(р.ш.)'!G66","v":9},"победитель",{"$f":"'[1]русский язык(р.ш.)'!$O$66","v":"Ситдикова Нурания Нурисламовна"}]
[null,{"$f":"'[1]русский язык(р.ш.)'!C75","v":" МБОУ«Малошильнинская СОШ\""},{"$f":"'[1]русский язык(р.ш.)'!D75","v":"Садриева"},{"$f":"'[1]русский язык(р.ш.)'!E75","v":"Резеда"},{"$f":"'[1]русский язык(р.ш.)'!F75","v":"Ришатовна"},{"$f":"'[1]русский язык(р.ш.)'!G75","v":11},"победитель",{"$f":"'[1]русский язык(р.ш.)'!$O$66","v":"Ситдикова Нурания Нурисламовна"}]
[null,{"$f":"'[1]русский язык(р.ш.)'!C28","v":"МБОУ \"Бетькинская СОШ\""},{"$f":"'[1]русский язык(р.ш.)'!D28","v":"Мутагирова "},{"$f":"'[1]русский язык(р.ш.)'!E28","v":"Иделия"},{"$f":"'[1]русский язык(р.ш.)'!F28","v":"Фаргатовна"},{"$f":"'[1]русский язык(р.ш.)'!G28","v":6},"призер",{"$f":"'[1]русский язык(р.ш.)'!$O$28","v":"Корчагина Анастасия Юрьевна"}]
[null,{"$f":"'[1]русский язык(р.ш.)'!C31","v":"МБОУ \"Князевская СОШ\""},{"$f":"'[1]русский язык(р.ш.)'!D31","v":"Елкин"},{"$f":"'[1]русский язык(р.ш.)'!E31","v":"Родион"},{"$f":"'[1]русский язык(р.ш.)'!F31","v":"Олегович"},{"$f":"'[1]русский язык(р.ш.)'!G31","v":6},"призер",{"$f":"'[1]русский язык(р.ш.)'!$O$31","v":"Загуменова ИринаАнатольевна"}]
[null,{"$f":"'[1]русский язык(р.ш.)'!C34","v":"МБОУ «СОШ пос. Круглое Поле»  "},{"$f":"'[1]русский язык(р.ш.)'!D34","v":"Шакуров "},{"$f":"'[1]русский язык(р.ш.)'!E34","v":"Тимур "},{"$f":"'[1]русский язык(р.ш.)'!F34","v":"Ринатович"},{"$f":"'[1]русский язык(р.ш.)'!G34","v":6},"призер",{"$f":"'[1]русский язык(р.ш.)'!$O$34","v":"Софина Евгения Миркурьевна"}]
[null,{"$f":"'[1]русский язык(р.ш.)'!C38","v":"МБОУ \"Нижнесуыксинская СОШ\""},{"$f":"'[1]русский язык(р.ш.)'!D38","v":"Ганиева "},{"$f":"'[1]русский язык(р.ш.)'!E38","v":"Сюмбель"},{"$f":"'[1]русский язык(р.ш.)'!F38","v":"Айнуровна"},{"$f":"'[1]русский язык(р.ш.)'!G38","v":6},"призер",{"$f":"'[1]русский язык(р.ш.)'!$O$38","v":"Сафиуллина Венера Валериевна"}]
[null,{"$f":"'[1]русский язык(р.ш.)'!C40","v":"МБОУ \"СОШ пос.Новый\"  "},{"$f":"'[1]русский язык(р.ш.)'!D40","v":"Валиуллина"},{"$f":"'[1]русский язык(р.ш.)'!E40","v":"Лейла"},{"$f":"'[1]русский язык(р.ш.)'!F40","v":"Мансуровна"},{"$f":"'[1]русский язык(р.ш.)'!G40","v":6},"призер",{"$f":"'[1]русский язык(р.ш.)'!O40","v":"Мухаметзянова Рамзия Зуфаровна"}]
[null,{"$f":"'[1]русский язык(р.ш.)'!C41","v":"МБОУ \"СемекеевскаяООШ\"  "},{"$f":"'[1]русский язык(р.ш.)'!D41","v":"Абзалутдинова"},{"$f":"'[1]русский язык(р.ш.)'!E41","v":"Эльза"},{"$f":"'[1]русский язык(р.ш.)'!F41","v":"Василевна"},{"$f":"'[1]русский язык(р.ш.)'!G41","v":6},"призер",{"$f":"'[1]русский язык(р.ш.)'!O41","v":"Ситдикова Венера Надиловна"}]
[null,{"$f":"'[1]русский язык(р.ш.)'!C45","v":"МБОУ \"Бетькинская СОШ\""},{"$f":"'[1]русский язык(р.ш.)'!D45","v":"Залеев "},{"$f":"'[1]русский язык(р.ш.)'!E45","v":"Руслан"},{"$f":"'[1]русский язык(р.ш.)'!F45","v":"Анварович"},{"$f":"'[1]русский язык(р.ш.)'!G45","v":7},"призер",{"$f":"'[1]русский язык(р.ш.)'!$O$45","v":"Шагимарданова Раушания Анваровна "}]
[null,{"$f":"'[1]русский язык(р.ш.)'!C56","v":"МБОУ \"Комсомольская СОШ\""},{"$f":"'[1]русский язык(р.ш.)'!D56","v":"Галиева"},{"$f":"'[1]русский язык(р.ш.)'!E56","v":"Камилла"},{"$f":"'[1]русский язык(р.ш.)'!F56","v":"Анваровна"},{"$f":"'[1]русский язык(р.ш.)'!G56","v":8},"призер",{"$f":"'[1]русский язык(р.ш.)'!$O$56","v":"Кузнецова Фарида Фаритовна"}]
[null,{"$f":"'[1]русский язык(р.ш.)'!C59","v":"МБОУ \"Мелекесская СОШ\""},{"$f":"'[1]русский язык(р.ш.)'!D59","v":"Кузнецов"},{"$f":"'[1]русский язык(р.ш.)'!E59","v":"Юрий"},{"$f":"'[1]русский язык(р.ш.)'!F59","v":"Марселевич"},{"$f":"'[1]русский язык(р.ш.)'!G59","v":8},"призер",{"$f":"'[1]русский язык(р.ш.)'!O59","v":"Кузнецова Ирина Николаевна"}]
[null,{"$f":"'[1]русский язык(р.ш.)'!C60","v":"МБОУ\"Новотроицкая СОШ\""},{"$f":"'[1]русский язык(р.ш.)'!D60","v":"Сафиуллин"},{"$f":"'[1]русский язык(р.ш.)'!E60","v":"Ильдар"},{"$f":"'[1]русский язык(р.ш.)'!F60","v":"Альбертович"},{"$f":"'[1]русский язык(р.ш.)'!G60","v":8},"призер",{"$f":"'[1]русский язык(р.ш.)'!O60","v":"Сафиуллина Эльвира Рафисовна"}]
[null,{"$f":"'[1]русский язык(р.ш.)'!C62","v":"МБОУ \"Бурдинская СОШ\""},{"$f":"'[1]русский язык(р.ш.)'!D62","v":"Чернов "},{"$f":"'[1]русский язык(р.ш.)'!E62","v":"Валентин"},{"$f":"'[1]русский язык(р.ш.)'!F62","v":"Валерианович"},{"$f":"'[1]русский язык(р.ш.)'!G62","v":9},"призер",{"$f":"'[1]русский язык(р.ш.)'!$O$62","v":"Чернова Энзе Асгатовна"}]
[null,{"$f":"'[1]русский язык(р.ш.)'!C74","v":"МБОУ \"Комсомольская СОШ\""},{"$f":"'[1]русский язык(р.ш.)'!D74","v":"Нуреева"},{"$f":"'[1]русский язык(р.ш.)'!E74","v":"Елизавета"},{"$f":"'[1]русский язык(р.ш.)'!F74","v":"Вячеславовна"},{"$f":"'[1]русский язык(р.ш.)'!G74","v":11},"призер",{"$f":"$H$43","v":"Кузнецова Фарида Фаритовна"}]
["История  3/1    участников-40"," МБОУ \"СОШп.Новый\"",{"$f":"'[2]Протокол. История'!D10","v":"Каримова"},{"$f":"'[2]Протокол. История'!E10","v":"Рената"},{"$f":"'[2]Протокол. История'!F10","v":"Рамисовна"},{"$f":"'[2]Протокол. История'!G10","v":7},"победитель","Шамсутдинова Венера Флюровна"]
[null,{"$f":"'[2]Протокол. История'!C34","v":"МБОУ \"Бетькинская СОШ\"  "},{"$f":"'[2]Протокол. История'!D34","v":"Сафиуллина"},{"$f":"'[2]Протокол. История'!E34","v":"Азалия"},{"$f":"'[2]Протокол. История'!F34","v":"Айратовна"},{"$f":"'[2]Протокол. История'!G34","v":10},"победитель","Шамсиева Лилия Талгатовна"]
[null,"МБОУ \"Князевская СОШ\" ",{"$f":"'[2]Протокол. История'!D39","v":"Бадретдинова"},{"$f":"'[2]Протокол. История'!E39","v":"Чулпан"},{"$f":"'[2]Протокол. История'!F39","v":"Айзатовна"},{"$f":"'[2]Протокол. История'!G39","v":11},"победитель","Самойлова ТатьянаИвановна"]
[null,"МБОУ \"Тлянче- Тамакская СОШ\"",{"$f":"'[2]Протокол. История'!D37","v":"Файзуллина"},{"$f":"'[2]Протокол. История'!E37","v":"Индира"},{"$f":"'[2]Протокол. История'!F37","v":"Мунировна"},{"$f":"'[2]Протокол. История'!G37","v":11},"призер","Яхина Рузиля Анваровна"]
["Обществознание  1/0  участников-62","МБОУ \"Малошильнинская СОШ\"",{"$f":"'[3]Обществознание 1'!D43","v":"Александрова"},{"$f":"'[3]Обществознание 1'!E43","v":" Ирина"},{"$f":"'[3]Обществознание 1'!F43","v":"Витальевна"},{"$f":"'[3]Обществознание 1'!G43","v":9},"победитель","Михайлова Гузель Робертовна"]
["Литература  5/12      участников-35",{"$f":"'[4]лит-ра (р.ш.)'!C11","v":"МБОУ \"Шильнебашская СОШ\" "},{"$f":"'[4]лит-ра (р.ш.)'!D11","v":"Балашова"},{"$f":"'[4]лит-ра (р.ш.)'!E11","v":"Таисия"},{"$f":"'[4]лит-ра (р.ш.)'!F11","v":"Николаевна"},{"$f":"'[4]лит-ра (р.ш.)'!G11","v":7},"победитель","Хлопунова Ольга Владимировна"]
[null,{"$f":"'[4]лит-ра (р.ш.)'!C17","v":"МБОУ \"Комсомольская СОШ\""},{"$f":"'[4]лит-ра (р.ш.)'!D17","v":"Галиева"},{"$f":"'[4]лит-ра (р.ш.)'!E17","v":"Камилла"},{"$f":"'[4]лит-ра (р.ш.)'!F17","v":"Анваровна"},{"$f":"'[4]лит-ра (р.ш.)'!G17","v":8},"победитель","Кузнецова Фарида Фаритовна"]
[null,{"$f":"'[4]лит-ра (р.ш.)'!C25","v":"МБОУ «СОШ пос. Круглое Поле» "},{"$f":"'[4]лит-ра (р.ш.)'!D25","v":"Шамсутдинова "},{"$f":"'[4]лит-ра (р.ш.)'!E25","v":"Аделина"},{"$f":"'[4]лит-ра (р.ш.)'!F25","v":"Маратовна"},{"$f":"'[4]лит-ра (р.ш.)'!G25","v":9},"победитель","Хузина Роза Миннахметовна"]
[null,{"$f":"'[4]лит-ра (р.ш.)'!C34","v":"МБОУ «СОШ пос. Новый» "},{"$f":"'[4]лит-ра (р.ш.)'!D34","v":"Шайхутдинова"},{"$f":"'[4]лит-ра (р.ш.)'!E34","v":"Ильвина"},{"$f":"'[4]лит-ра (р.ш.)'!F34","v":"Рамилевна"},{"$f":"'[4]лит-ра (р.ш.)'!G34","v":10},"победитель","Мухаметзянова Рамзия Зуфаровна"]
[null,{"$f":"'[4]лит-ра (р.ш.)'!C36","v":"МБОУ \"Князевская СОШ\""},{"$f":"'[4]лит-ра (р.ш.)'!D36","v":"Ямалтдинова"},{"$f":"'[4]лит-ра (р.ш.)'!E36","v":"Яна"},{"$f":"'[4]лит-ра (р.ш.)'!F36","v":"Ирековна"},{"$f":"'[4]лит-ра (р.ш.)'!G36","v":11},"победитель","Махмутова Айсылу Айдашевна"]
[null,{"$f":"'[4]лит-ра (р.ш.)'!C7","v":"МБОУ \"Князевская СОШ\""},{"$f":"'[4]лит-ра (р.ш.)'!D7","v":"Елкин"},{"$f":"'[4]лит-ра (р.ш.)'!E7","v":"Богдан"},{"$f":"'[4]лит-ра (р.ш.)'!F7","v":"Олегович"},{"$f":"'[4]лит-ра (р.ш.)'!G7","v":7},"призер",{"$f":"'[4]лит-ра (р.ш.)'!O7","v":"Дубей Светлана Анатольевна"}]
[null,{"$f":"'[4]лит-ра (р.ш.)'!C8","v":"МБОУ \"Комсомольская СОШ\""},"Шарифьянова",{"$f":"'[4]лит-ра (р.ш.)'!E8","v":"Амира"},{"$f":"'[4]лит-ра (р.ш.)'!F8","v":".Нафисовна"},{"$f":"'[4]лит-ра (р.ш.)'!G8","v":7},"призер",{"$f":"'[4]лит-ра (р.ш.)'!O8","v":"Кузнецова Фарида Фаритовна"}]
[null,{"$f":"'[4]лит-ра (р.ш.)'!C14","v":"МБОУ \"Бетькинская СОШ\""},{"$f":"'[4]лит-ра (р.ш.)'!D14","v":"Стрыгина "},{"$f":"'[4]лит-ра (р.ш.)'!E14","v":"Алиса"},{"$f":"'[4]лит-ра (р.ш.)'!F14","v":"Витальевна"},{"$f":"'[4]лит-ра (р.ш.)'!G14","v":8},"призер",{"$f":"'[4]лит-ра (р.ш.)'!O14","v":"Лысенкова Светлана Лукьяновна"}]
[null,{"$f":"'[4]лит-ра (р.ш.)'!C15","v":" МБОУ«Малошильнинская СОШ\""},{"$f":"'[4]лит-ра (р.ш.)'!D15","v":"Даричева"},{"$f":"'[4]лит-ра (р.ш.)'!E15","v":"Яна"},{"$f":"'[4]лит-ра (р.ш.)'!F15","v":"Сергеевна"},{"$f":"'[4]лит-ра (р.ш.)'!G15","v":8},"призер",{"$f":"'[4]лит-ра (р.ш.)'!O15","v":"Габитова Саима Сулеймановна"}]
[null,{"$f":"'[4]лит-ра (р.ш.)'!C16","v":"МБОУ \"Князевская СОШ\""},{"$f":"'[4]лит-ра (р.ш.)'!D16","v":"Мамаева"},{"$f":"'[4]лит-ра (р.ш.)'!E16","v":"Арина"},{"$f":"'[4]лит-ра (р.ш.)'!F16","v":"Борисовна"},{"$f":"'[4]лит-ра (р.ш.)'!G16","v":8},"призер",{"$f":"'[4]лит-ра (р.ш.)'!O16","v":"Махмутова Айсылу Айдашевна"}]
[null,{"$f":"'[4]лит-ра (р.ш.)'!C20","v":"МБОУ «СОШ пос. Новый» "},{"$f":"'[4]лит-ра (р.ш.)'!D20","v":"Комаров "},{"$f":"'[4]лит-ра (р.ш.)'!E20","v":"Михаил"},{"$f":"'[4]лит-ра (р.ш.)'!F20","v":"Андреевич"},{"$f":"'[4]лит-ра (р.ш.)'!G20","v":8},"призер",{"$f":"'[4]лит-ра (р.ш.)'!$O$20","v":"Мухаметзянова Рамзия Зуфаровна"}]
[null,{"$f":"'[4]лит-ра (р.ш.)'!C22","v":" МБОУ«Малошильнинская СОШ\""},{"$f":"'[4]лит-ра (р.ш.)'!D22","v":"Александрова "},{"$f":"'[4]лит-ра (р.ш.)'!E22","v":"Ирина"},{"$f":"'[4]лит-ра (р.ш.)'!F22","v":"Витальевна"},{"$f":"'[4]лит-ра (р.ш.)'!G22","v":9},"призер","Ситдикова Нурания Нурисламовна"]
[null,{"$f":"'[4]лит-ра (р.ш.)'!C27","v":"МБОУ \"Шильнебашская СОШ\" "},{"$f":"'[4]лит-ра (р.ш.)'!D27","v":"Исаев "},{"$f":"'[4]лит-ра (р.ш.)'!E27","v":"Арсений"},{"$f":"'[4]лит-ра (р.ш.)'!F27","v":"Николаевич"},{"$f":"'[4]лит-ра (р.ш.)'!G27","v":9},"призер",{"$f":"'[4]лит-ра (р.ш.)'!O27","v":"Хлопунова Ольга Владимировна"}]
[null,{"$f":"'[4]лит-ра (р.ш.)'!C28","v":"МБОУ \"Бетькинская СОШ\""},{"$f":"'[4]лит-ра (р.ш.)'!D28","v":"Мисалова "},{"$f":"'[4]лит-ра (р.ш.)'!E28","v":"Алина"},{"$f":"'[4]лит-ра (р.ш.)'!F28","v":"Азатовна"},{"$f":"'[4]лит-ра (р.ш.)'!G28","v":10},"призер",{"$f":"'[4]лит-ра (р.ш.)'!O28","v":"Шагимарданова Раушания Анваровна"}]
[null,{"$f":"'[4]лит-ра (р.ш.)'!C29","v":" МБОУ«Малошильнинская СОШ\""},{"$f":"'[4]лит-ра (р.ш.)'!D29","v":"Курдюкова"},{"$f":"'[4]лит-ра (р.ш.)'!E29","v":" Мария"},{"$f":"'[4]лит-ра (р.ш.)'!F29","v":" Владимировна"},{"$f":"'[4]лит-ра (р.ш.)'!G29","v":10},"призер",{"$f":"'[4]лит-ра (р.ш.)'!O29","v":"Ситдикова Нурания Нурисламовна"}]
[null,{"$f":"'[4]лит-ра (р.ш.)'!C30","v":"МБОУ \"Князевская СОШ\""},{"$f":"'[4]лит-ра (р.ш.)'!D30","v":"Мингатина"},{"$f":"'[4]лит-ра (р.ш.)'!E30","v":"Гульнара"},{"$f":"'[4]лит-ра (р.ш.)'!F30","v":"Рафаэлевна"},{"$f":"'[4]лит-ра (р.ш.)'!G30","v":10},"призер",{"$f":"'[4]лит-ра (р.ш.)'!O30","v":"Загуменова Ирина Анатольевна"}]
[null,{"$f":"'[4]лит-ра (р.ш.)'!C35","v":" МБОУ«Малошильнинская СОШ\""},{"$f":"'[4]лит-ра (р.ш.)'!D35","v":"Маврин"},{"$f":"'[4]лит-ра (р.ш.)'!E35","v":" Дмитрий "},{"$f":"'[4]лит-ра (р.ш.)'!F35","v":"Андреевич"},{"$f":"'[4]лит-ра (р.ш.)'!G35","v":11},"призер","Ситдикова Нурания Нурисламовна"]
["География  2/1     участников-48","МБОУ \"Мелекесская СОШ\"","Галлямов ","Булат"," Райнурович",7,"победитель","Иванова Чулпан Валентиновна"]
[null,"МБОУ \"Мелекесская СОШ\"","Хазиев  ","Равиль","Рамилевич",8,"победитель","Иванова Чулпан Валентиновна"]
[null,"МБОУ \"Комсомольская СОШ\"","Юнусов","Ислам","Марселович",7,"призер","Сираева Тансылу Абдулхаевна"]
["ОБЖ 5/11     участников-76","Малошильнинская СОШ","Золоторев","Даниил ","Константинович",7,"победитель","Садриева Лилия Рахимзановна"]
[null,"Малошильнинская СОШ","Фатеева","Дарья","Максимовна",8,"победитель","Садриева Лилия Рахимзановна"]
[null,"Малошильнинская СОШ","Акимова","Мария","Сергеевна",9,"победитель","Садриева Лилия Рахимзановна"]
[null,"Шильнебашская СОШ","Шаехов","Раиль","Разилович",10,"победитель","Хлопунов Николай Сергеевич"]
[null,"Князевская СОШ","Бадретдинова","Чулпан","Айзатовна",11,"победитель","Белов ВикторИванович"]
[null,"Новотроицкая СОШ","Шагиева","Диана","Денисовна",8,"призер","Авзалова Эльмира Ниловна"]
[null,"Бурдинская СОШ","Ахметзянов","Ильшат","Ленарович",9,"призер","Утяшов Валерий Михайлович"]
[null,"Старо-Абдуловская СОШ","Газетдинов","Марат","Алмазович",9,"призер","Габидуллин Айнур Рафисович"]
[null,"СОШ пос. Круглое Поле» ","Сафиуллина ","Лиана","Врежовна",10,"призер","Гильманова Любовь Петровна"]
[null,"Кузкеевская СОШ","Салахова","Назиля","Фиргатовна",10,"призер","Карпов Владимир Иванович"]
[null,"Князевская СОШ","Альмухаметов","Данил","Евгеньевич",11,"призер","Белов ВикторИванович"]
[null,"Князевская СОШ","Абражеев","Данил","Александрович",11,"призер","Белов ВикторИванович"]
[null,"Новотроицкая СОШ","Сидорова","Анастасия","Юрьевна",11,"призер","Авзалова Эльмира Ниловна"]
[null,"СОШ пос.Новый","Минвалиев","Ильяс","Джалилевич",11,"призер","Гарифуллин Айрат Маратович"]
[null,"Шильнебашская СОШ","Васина","Татьяна","Олеговна",11,"призер","Хлопунов Николай сергеевич"]
[null,"СОШ п. Круглое Поле","Абзалимова","Айгуль","Мингалимовна",11,"призер","Гильманова Любовь Петровна"]
["Биология  5/18    участников-67","МБОУ \"Мелекесская СОШ\"","Черемных ","Лиана ","Александровна",7,"победитель","Иванова Чулпан Валентиновна"]
[null,"МБОУ \"Семекеевская ООШ\"","Сибгатуллина","Азалия","Ильгизовна",8,"победитель","Сагитова Ляйсан Рахимовна"]
[null,"МБОУ \"Новотроицкая СОШ\"","Шакирова","Чулпан","Ринатовна",9,"победитель","Нуретдинова  Альбина Николаевна"]
[null,"МБОУ «СОШ пос. Круглое Поле» ","Дементьева ","Мария","Викторовна",10,"победитель","Ишмурзина Лидия Андреенва"]
[null,"МБОУ \"Малошильнинская СОШ\" ","Садриева","Резеда","Ришатовна",11,"победитель","Мифтахова Зульфия Рустамовна"]
[null,"МБОУ \"Калмашская СОШ\"","Бурханова ","Азалия","Альбертовна",7,"призер","Кашапова Роза Дамировна"]
[null,"МБОУ \"Князевская СОШ\"","Аббасова","Наргюль","Ниязиевна",7,"призер","Ерхова ЛюбовьМихайловна"]
[null,"МБОУ \"Комсомольская СОШ\"","Юнусов","Ислам","Марселович",7,"призер","Юнусова Гулия Латыповна"]
[null,"МБОУ \"Калмашская СОШ\"","Бурганова","Гульназ","Алмазовна",8,"призер","Кашапова Роза Дамировна"]
[null,"МБОУ «СОШ пос. Круглое Поле» ","Зарипова","Алина","Рамилевна",8,"призер","Ишмурзина Лидия Андреенва"]
[null,"МБОУ \"Малошильнинская СОШ\"","Садриева","Ландыш","Ришатовна",8,"призер","Мифтахова Зульфия Рустамовна"]
[null,"МБОУ \"Мелекесская СОШ\"","Еремеева ","Диана ","Витальевна",8,"призер","Иванова Чулпан Валентиновна"]
[null,"МБОУ \"СОШ пос.Новый\" ","Комаров ","Михаил","Андреевич",8,"призер","Миннигулова Гульнара Рафиковна"]
[null,"МБОУ \"Калмашская СОШ\"","Садретдинов","Ильназ","Илмирович",9,"призер","Кашапова Роза Дамировна"]
[null,"МБОУ \"Князевская СОШ\"","Харматуллина","Аделина","Фердинантдовна",9,"призер","Ерхова ЛюбовьМихайловна"]
[null,"МБОУ \"Семекеевская ООШ\"","Файрушина","Зилия","Равилевна",9,"призер","Сагитова Ляйсан Рахимовна"]
[null,"МБОУ \"Яна Булякская ООШ\"","Валеев","Айнур","Рамилевич",9,"призер","Абдуллина Гульфира Азгаровна"]
[null,"МБОУ \"Мелекесская СОШ\"","Кутушев ","Шамиль ","Айратович",10,"призер","Иванова Чулпан Валентиновна"]
[null,"МБОУ \"СОШ пос.Новый\" ","Гильфанов ","Булат","Рафикович",10,"призер","Миннигулова Гульнара Рафиковна"]
[null,"МБОУ \"Князевская СОШ\"","Гиниятуллина","Диана","Маратовна",11,"призер","Ерхова ЛюбовьМихайловна"]
[null,"МБОУ \"Малошильнинская СОШ\"","Исаева","Алина","Искандаровна",11,"призер","Мифтахова Зульфия Рустамовна"]
[null,"МБОУ \"Мелекесская СОШ\"","Хабибуллин  ","Камиль","Сиринович",11,"призер","Иванова Чулпан Валентиновна"]
[null,"МБОУ \"Нижнесуыксинская СОШ\"","Хайрутдиова","Индира","Булатовна",11,"призер","Фазуллина Гульсина Миннахметовна"]
["Физика  5/2    участников-43","МБОУ \"Князевская СОШ\"","Шаймарданов","Рияз","Дильшатович",7,"победитель","Якушева Валентина Николаевна"]
[null,"МБОУ \"Калмашская СОШ\"","Шаехмитов","Шамиль","Рустемович",8,"победитель","Садриева Раиса Фаритовна"]
[null,"МБОУ \"Нижнесуыксинская СОШ\"","Ахметьзянова ","Айгуль ","Фанисовна",9,"победитель","Хабутдинова Гузалия Фаязовна"]
[null,"МБОУ \"Бетькинская СОШ\"","Хуснуллина ","Миляуша","Ренатовна",10,"победитель","Лысенков Андрей Васильевич "]
[null,"МБОУ\"Бетькинская СОШ\"","Камалитдинов","Руслан","Ильдарович",11,"победитель","Лысенков Андрей Васильевич "]
[null,"МБОУ\"Тлянче-Тамакская  СОШ\"","Ямалов","Булат","Радикович","9","призер","Гайнутдинова Резеда Николаевна"]
[null,"МБОУ\"Тлянче-Тамакская  СОШ\"","Юсупов","Альфис","Гумарович",11,"призер","Гайнутдинова Резеда Николаевна"]
["Физическая культура 10/24    участников-89","МБОУ\"Бетькинская СОШ\"","Абдулкаева ","Айгуль","Авазовна",7,"победитель","Галяутдинов Фатих Фоатович "]
[null,"МБОУ\"Мусабай-Заводская  СОШ\"","Королев","Никита","Валерьевич",7,"победитель","Калимуллин Файсал Гайнелхакович"]
[null,"МБОУ\"Бетькинская СОШ\"","Сибгатуллина","Азалия","Айратовна",8,"победитель","Галяутдинов Фатих Фоатович "]
[null,"МБОУ\"Кузкеевская СОШ\"","Фарваев","Ильмир","Рамилевич",8,"победитель","Карпов Владимир Иванович"]
[null,"МБОУ\"Бетькинская СОШ\"","Ферафонтова ","Анастасия","Сергеевна",9,"победитель","Галяутдинов Фатих Фоатович "]
[null,"МБОУ \"СОШ пос. Круглое Поле\"","Агеев","Арсений","Сергеевич",9,"победитель","Шамиданов Сергей Константинович"]
[null,"МБОУ \"Малошильнинская СОШ\"","Курдюкова","Мария","Владимировна",10,"победитель","Садриева Лилия Рахимзановна"]
[null,"МБОУ\"Мусабай-Заводская  СОШ\"","Хусаинов","Айдар","Ряшидович",10,"победитель","Калимуллин Файсал Гайнелхакович"]
[null,"МБОУ \"Малошильнинская СОШ\"","Сенченков","Никита","Сергеевич",11,"победитель","Садриева Лилия Рахимзановна"]
[null,"МБОУ\"Новотроицкая СОШ\"","Сидорова","Анастасия",null,11,"победитель","Авзалова Эльмира Ниловна"]
[null,"МБОУ\"Бетькинская СОШ\"","Губочкина","Виктория","Владиславовна",7,"призер","Галяутдинов Фатих Фоатович "]
[null,"МБОУ\"Мусабай-Заводская  СОШ\"","Зарипов","Ильхам","Ильгизович",7,"призер","Калимуллин Файсал Гайнелхакович"]
[null,"МБОУ\"Биклянская СОШ\"","Хусаинова","Дина","Дамировна",7,"призер","Исмагилов Ринат Марсович"]
[null,"МБОУ\"Калмиинская СОШ\"","Вахитов","Ильяс","Айзатович",7,"призер","Валеев Марат Ильгизарович"]
[null,"МБОУ\"Мусабай-Заводская  СОШ\"","Фахрутдинова","Алия",null,7,"призер","Калимуллин Файсал Гайнелхакович"]
[null,"МБОУ\"Нижнесуыксинская СОШ\"","Галиева","Алия","Радиковна",7,"призер","Файзуллин Наис Нуриахметович"]
[null,"МБОУ\"Тлянче-Тамакская СОШ\"","Харисов","Сулейман","Риназович",7,"призер","Фахриев Альфис Ахнафович"]
[null,"МБОУ\"Новотроицкая СОШ\"","Ниматова","Ильвина","Тахиржоновна",8,"призер","Авзалова Эльмира Ниловна"]
[null,"МБОУ\"Нижнесуыксинская СОШ\"","Фатыйхова","Аделя","Рамилевна",8,"призер","Файзуллин Наис Нуриахметович"]
[null,"МБОУ\"Биклянская СОШ\"","Сарваров","Нияз","Ришатович",9,"призер","Исмагилов Ринат Марсович"]
[null,"МБОУ\"Биклянская СОШ\"","Кирилюк","Ксения","Сергеевна",9,"призер","Исмагилов Ринат Марсович"]
[null,"МБОУ \"Малошильнинская СОШ\"","Халеев","Тимур","Ильгизарович",9,"призер","Садриева Лилия Рахимзановна"]
[null,"МБОУ \"Малошильнинская СОШ\"","Чисятков","Илья","Игоревич",9,"призер","Садриева Лилия Рахимзановна"]
[null,"МБОУ\"Мусабай-Заводская  СОШ\"","Петрова","Аделина","Эдуардовна",9,"призер","Калимуллин Файсал Гайнелхакович"]
[null,"МБОУ\"Мусабай-Заводская  СОШ\"","Зиятдинов","Артур","Ильшатович",9,"призер","Калимуллин Файсал Гайнелхакович"]
[null,"МБОУ\"Старо-Абдуловская СОШ\"","Газетдинов","Марат","Алмазович",9,"призер","Габидуллин Айнур Рафисович"]
[null,"МБОУ\"Шильнебашская СОШ\"","Валимухаметов","Аяз","Алмазович",9,"призер","Бураев Геннадий Вячеславович"]
[null," МБОУ\"СОШ пос.Новый\"","Гарифуллин","Артур","Айратович",10,"призер","Исмагилов Алмаз Раисович"]
[null,"МБОУ\"Шильнебашская СОШ\"","Шаехов","Раиль","Разилович",10,"призер","Бураев Геннадий Вячеславович"]
[null,"МБОУ \"Князевская СОШ\"","Скотникова","Олеся","Вячеславовна",11,"призер","Белов ВикторИванович"]
[null,"МБОУ\"Кузкеевская СОШ\"","Ахтямова","Дина","Айдаровна",11,"призер","Карпов Владимир Иванович"]
[null,"СОШ пос. Круглое Поле","Абзалимова","Айгуль","Минтагировна",11,"призер","Гильманова Любовь Петровна"]
[null,"МБОУ\"Тлянче-Тамакская СОШ\"","Файзуллина","Индира","Мунировна",11,"призер","Исхакова Роза Загидулловна"]
[null,"МБОУ\"Шильнебашская СОШ\"","Васина","Татьяна","Олеговна",11,"призер","Бураев Геннадий Вячеславович"]
["Английский язык 8/7                              участников-89  ","МБОУ \"Бетькинская СОШ\"  ","Вафин","Адель","Марсович",4,"победитель","Нурханова Любовь Джолдасовна"]
[null,"МБОУ \"Бетькинская СОШ\" ","Фархутдинов","Даян","Денисович",5,"победитель","Нурханова Любовь Джолдасовна"]
[null,"МБОУ \"Князевская СОШ\"  ","Хаматов","Даниль","Ильсурович",6,"победитель","Елкина Наталья Михайловна"]
[null,"МБОУ \"СОШ пос. Круглое Поле\" ","Тимошев","Дамир","Вильданович",7,"победитель","Шкабарева Алина Сергеевна"]
[null,"МБОУ \"Тлянче-Тамакская СОШ \"","Ахметшина","Тансылу","Ясировна",8,"победитель","Ахметшина Чулпан Ахлятовна"]
[null,"МБОУ \"Бетькинская СОШ\"  ","Стрыгина","Алиса","Витальевна",8,"победитель","Нурханова Любовь Джолдасовна"]
[null,"МБОУ \"Малошильнинская  СОШ\"  ","Александрова ","Ирина ","Витальевна",9,"победитель","Ситдикова Динара Рафаковна"]
[null,"МБОУ \"Новотроицкая СОШ\"  ","Ферафонтов ","Антон","Павлович",10,"победитель","Гараева Роза Фанилевна"]
[null,"МБОУ \"СОШ пос. Круглое Поле\"  ","Губаева","Азалия","Салаватовна",4,"призер","Работа Ирина Михайловна"]
[null,"МБОУ \"Малошильнинская  СОШ\"  ","Сенченков","Степан","Геннадьевич",5,"призер","Миннахметова Алина Сергеевна"]
[null,"МБОУ \"Нижнесуыксинская СОШ\"  ","Ганиева","Сюмбель","Айнуровна",6,"призер","Низамова Резеда Ильгизаровна"]
[null,"МБОУ  \"Калмашская СОШ\"  ","Копытова","Наташа","Константиновна",6,"призер","Аскарова Разифа Тимергалиевна"]
[null,"МБОУ \"СОШ пос. Круглое Поле\"  ","Шакуров","Тимур","Ринатович",6,"призер","Орловская Лилия Саитгалиевна"]
[null,"МБОУ \"Новотроицкая СОШ\"  ","Сафиуллин","Ильдар","Альбертович",8,"призер","Гараева Роза Фанилевна"]
[null,"МБОУ \"Шильнебашская СОШ  \"  ","Исаев","Арсений","Николаевич",9,"призер","Шаехова Эльмира Рашитовна"]
["Геология  4/7      участников-16","МБОУ \"Мелекесская СОШ\"","Хазиев  ","Равиль","Рамилевич",8,"победитель","Иванова Чулпан Валентиновна"]
[null,"МБОУ \"Нижнесуыксинская СОШ\"","Ахметьзянова","Айгуль ","Фанисовна",9,"победитель","Фазуллина Гульсина Миннахметовна"]
[null,"МБОУ «Князевская СОШ» ","Заляев ","Тимур","Маратович",10,"победитель","Гончарова СветланаЮрьевна"]
[null,"МБОУ \"Нижнесуыксинская СОШ\"","Файрушин","Ильшат","Рубинович",11,"победитель","Фазуллина Гульсина Миннахметовна"]
[null,"МБОУ «Князевская СОШ» ","Шакиров","Айдар","Булатович",8,"призер","Гончарова СветланаЮрьевна"]
[null,"МБОУ \"Мелекесская СОШ\"","Исламова  ","Риана","Ануровна",8,"призер","Иванова Чулпан Валентиновна"]
[null,"МБОУ \"Мелекесская СОШ\"","Еремеева  ","Диана","Витальевна",8,"призер","Иванова Чулпан Валентиновна"]
[null,"МБОУ \"Новотроицкая СОШ\"","Сафиуллин ","Ильдар","Альбертович",8,"призер","Нуретдинов Радик Раисович"]
[null,"МБОУ \"Нижнесуыксинская СОШ\"","Низамова","Рузиля","Ильшатовна",8,"призер","Фазуллина Гульсина Миннахметовна"]
[null,"МБОУ \"Новотроицкая СОШ\"","Гараев","Адель","Павлович",10,"призер","Нуретдинов Радик Раисович"]
[null,"МБОУ \"Мелекесская СОШ\"","Кутушев ","Шамиль ","Айратович",10,"призер","Иванова Чулпан Валентиновна"]
["Технология  6/10   участников -26","МБОУ\"Биклянская СОШ\"","Гимазетдинова","Регина","Тимуровна",7,"победитель","Ахметзянова Роза Гатуфовна"]
[null,"МБОУ \"Бетькинская СОШ\"  ","Мусифуллин","Ильдар","Айдарович",8,"победитель","Ибрагимова Венера Азатовна"]
[null,"МБОУ \"Комсомольская СОШ\"","Васильева","Карина","Артемовна",9,"победитель","Адиева Назлия Фанисовна"]
[null,"МБОУ \"Яна Булякская ООШ\"","Садыков","Рамиль","Разимович",9,"победитель","Назмутдинов Фанил Шарипянович"]
[null,"МБОУ\"Биклянская СОШ\"","Хасанова ","Айсылу","Ришатовна",11,"победитель","Ахметзянова Роза Гатуфовна"]
[null,"МБОУ \"Тлянче-Тамакская СОШ \"","Юсупов","Альфис","Гумарович",11,"победитель","Лутфуллина Алсу Раисовна"]
[null,"МБОУ \"Новотроицкая СОШ\"","Ушмарова","Арина","Владимировна",7,"призер","Султанова Зульфия Мизхатовна"]
[null," МБОУ\"СОШ пос.Новый\"","Хатыпова","Самира","Альбертовна",7,"призер","Хайдарова Зульфия Салаватовна"]
[null,"МБОУ \"Тлянче-Тамакская СОШ \"","Хайруллина","Лейла","Инсафовна",7,"призер","Лутфуллина Алсу Раисовна"]
[null,"МБОУ \"Тлянче-Тамакская СОШ \"","Гатауллина","Диляра","Айратовна",7,"призер","Лутфуллина Алсу Раисовна"]
[null,"МБОУ «Князевская СОШ» ","Дорофеева","Дарья","Алексеевна",8,"призер","Цандер Наталья Михайловна"]
[null,"МБОУ \"Новотроицкая СОШ\"","Иктисамов","Евгений","Юрьевич",8,"призер","Султанова Зульфия Мизхатовна"]
[null,"МБОУ \"Нижнесуыксинская СОШ\"","Днистрян ","Ильмир ","Марселевич",8,"призер","Фазуллин Дильшат Зиннатович"]
[null,"МБОУ \"Тлянче-Тамакская СОШ \"","Калимуллина","Алиса","Айдаровна",8,"призер","Лутфуллина Алсу Раисовна"]
[null,"МБОУ \"Тлянче-Тамакская СОШ \"","Миннеханов","Хамит","Халимович",8,"призер","Лутфуллина Алсу Раисовна"]
[null,"МБОУ \"Тлянче-Тамакская СОШ \"","Гарифулина","Регина","Раисовна",11,"призер","Лутфуллина Алсу Раисовна"]
["Русский язык (т.ш.) 5/12                      участников -39","МБОУ \"Калмашская СОШ\"","Нурутдинова  ","Алия","Нурзинатовна",7,"победитель","Фазылова Вера Михайловна"]
[null,"МБОУ \"Семекеевская ООШ\"","Сибгатуллина","Азалия","Ильгизовна",8,"победитель","Ситдикова Венера Надиловна"]
[null,"МБОУ \"Бурдинская СОШ\"","Чернов ","Валентин","Валерианович",9,"победитель","Чернова Энзе Асгатовна"]
[null,"МБОУ \"Мелекесская СОШ\"","Кутушев ","Шамиль","Айратович",10,"победитель","Умнова Лилия Ивановна"]
[null,"МБОУ \"Кузкеевская СОШ\"","Гайнутдинов","Булат","Ильгизарович",11,"победитель","Паллыева МайяРашидовна"]
[null,"МБОУ \"Биклянская СОШ\"","Ширгазин","Артур","Рамилевич",7,"призер","Шамсутдинова Тазкира Наиловна"]
[null,"МБОУ \"Иштеряковская ООШ\"","Закирова","Залия","Рустемовна",7,"призер","Губайдуллина Фания Вакиловна"]
[null,"МБОУ \"Кузкеевская СОШ\"","Гилметдинва","Диана","Дамировна",7,"призер","Паллыева Майя Рашидовна"]
[null,"МБОУ \"Семекеевская ООШ\"","Сабирзянова","Милена","Рамилевна",7,"призер","Ситдикова Венера Надиловна"]
[null,"МБОУ \"Мусабай-Заводская СОШ\"","Фаррахова","Ралина","Инзировна",8,"призер","Хайруллина Айгуль Алмазовна"]
[null,"МБОУ \"Тлянче-Тамакская СОШ\"","Ахметшина","Тансылу","Ясировна",8,"призер","Абзалова Алсу Мирдайсервна"]
[null,"МБОУ \"Биклянская СОШ\"","Верхотурцева","Софья","Андреевна",9,"призер","Шамсутдинова Тазкира Наиловна"]
[null,"МБОУ \"Калмиинская ООШ\"","Хальфиева","Элина","Ильдаровна",9,"призер","Габидуллина Чулпан Ахметзакиевна"]
[null,"МБОУ \"Тлянче-Тамакская СОШ\"","Тухбатуллина","Лилия","Равилевна",9,"призер","Абзалова Алсу Мирдайсервна"]
[null,"МБОУ \"Кузкеевская СОШ\"","Галиева","Гульназ","Ильнуровна",10,"призер","Паллыева МайяРашидовна"]
[null,"МБОУ \"Мусабай-Заводская СОШ\"","Хакимова","Миляуша","Маратовна",10,"призер","Марсалова Гульшат Мударисовна"]
[null,"МБОУ \"Нижнесуыксинская  СОШ\"","Хайрутдинова","Индира","Булатовна",11,"призер","Анварова Ираида Анатольевна"]
["Литература (т.ш.) 5/12                      участников -35","МБОУ \"Кузкеевская СОШ\"","Стасенок","Алеся","Александровна",6,"победитель","Валиева Лилия Музафаровна"]
[null,"МБОУ \"Мусабай-Заводская СОШ\"","Фаррахова","Ралина","Инзировна",8,"победитель","Хайруллина Айгуль Алмазовна"]
[null,"МБОУ \"Бурдинская СОШ\"","Чернов ","Валентин","Валерианович",9,"победитель","Чернова Энзе Асгатовна"]
[null,"МБОУ \"Мелекесская СОШ\"","Кутушев ","Шамиль","Айратович",10,"победитель","Умнова Лилия Ивановна"]
[null,"МБОУ \"Кузкеевская СОШ\"","Сахипгараева","Язиля","Айратовна",11,"победитель","Паллыева Майя Рашидовна"]
[null,"МБОУ \"Бурдинская СОШ\"","Фадеев","Андрей","Анатольевич",7,"призер","Левашова Елена Петровна"]
[null,"МБОУ \"Бурдинская СОШ\"","Артемьева","Лилия","Вячеславовна",7,"призер","Левашова Елена Петровна"]
[null,"МБОУ \"Кузкеевская СОШ\"","Кашапова","Айзиля","Ильназовна",6,"призер","Валиева Лилия Музафаровна"]
[null,"МБОУ \"Кузкеевская СОШ\"","Гилметдинова","  Диана","Дамировна",7,"призер","Паллыева Майя Рашидовна"]
[null,"МБОУ \"Мусабай-Заводская СОШ\"","Гараева ","Ландыш","Рамиловна",7,"призер","Марсалова Гульшат Мударисовна"]
[null,"МБОУ \"Семекеевская ООШ\"","Сибгатуллина","Азалия","Ильгизовна",8,"призер","Ситдикова Венера Надиловна"]
[null,"МБОУ \"Тлянче-Тамакская СОШ\"","Калимуллина","Алиса","Айдаровна",8,"призер","Абзалова Алсу Мирдайсервна"]
[null,"МБОУ \"Калмиинская ООШ\"","Хальфиева","Элина","Ильдаровна",9,"призер","Габидуллина Чулпан Ахметзакиевна"]
[null,"МБОУ \"Мусабай-Заводская СОШ\"","Шайхеев","Айбулат","Алмазович",9,"призер","Хайруллина Айгуль Алмазовна"]
[null,"МБОУ \"Мусабай-Заводская СОШ\"","Хакимова","Миляуша","Маратовна",10,"призер","Марсалова Гульшат Мударисовна"]
[null,"МБОУ \"Нижнесуыксинская  СОШ\"","Хайрутдинова ","    Индира","Булатовна",11,"призер","Анварова Ираида Анатольевна"]
[null,"МБОУ \"Кузкеевская СОШ\"","Гайнутдинов","Булат","Ильгизарович",11,"призер","Паллыева Майя Рашидовна"]
["Родной язык (р.ш.)  8/23              участников-44","МБОУ \"СОШ пос.Новый\"  ","Димухамедов","Самир","Ирекович",4,"победитель","Яхина Сабина Фаиловна"]
[null,"МБОУ \"СОШ пос.Новый\"  ","Павликовская","Лилиана","Васильевна",5,"победитель","Ибрагимова Рания Зульфатовна"]
[null," МБОУ «Малошильнинская СОШ»  ","Исмагилов ","Айнур ","Маратович",6,"победитель","Каримова Алсу Шарипьяновна"]
[null,"МБОУ \"СОШ пос.Новый\"  ","Каримова","Рената","Рамисовна",7,"победитель","Мавзютова Разидя Гайсовна"]
[null,"МБОУ\"Новотроицкая СОШ\"","Шагиева","Диана","Денисовна",8,"победитель","Мавлиева  Кавсария Зигангировна"]
[null,"МБОУ\"Новотроицкая СОШ\"","Шакирова","Чулпан","Ринатовна",9,"победитель","Мавлиева  Кавсария Зигангировна"]
[null,"МБОУ\"Новотроицкая СОШ\"","Усманова","Лилия","Ильшатовна",10,"победитель","Мавлиева  Кавсария Зигангировна"]
[null,"МБОУ «СОШ пос. Круглое Поле» ","Абзалимова","Айгуль ","Минтагировна",11,"победитель","Валиахметова Фидания Фаиловна"]
[null,"МБОУ \"СОШ пос.Новый\"  ","Хамадъярова","Самира","Алмазовна",4,"призер","Яхина Сабина Фаиловна"]
[null,"МБОУ \"Шильнебашская СОШ \" ","Галиахметов ","Ислам ","Ильгизович",4,"призер","Исхакова Рамзия Талгатовна"]
[null,"МБОУ \"Комсомольская СОШ \" ","Бардебанова","Айгуль ","Алмазовна",4,"призер","Галимов Фаниль Закиевич"]
[null,"МБОУ\"Новотроицкая СОШ\"","Мингалиева ","Эльза","Илдаровна",4,"призер","Гиздатуллина Диляра Миннебаевна"]
[null,"МБОУ \"СОШ пос.Новый\"  ","Шириев ","Самат","Шамилевич",5,"призер","Ибрагимова Рания Зульфатовна"]
[null,"МБОУ \"Шильнебашская СОШ \" ","Насифуллина "," Айназ","Айратовна",5,"призер","Исхакова Рамзия Талгатовна"]
[null,"МБОУ \"Шильнебашская СОШ \" ","Юлдашев  ","Ильяс"," Азатович",5,"призер","Исхакова Рамзия Талгатовна"]
[null,"МБОУ\"Князевская СОШ\"","Гатауллина","Алия","Фаизовна",6,"призер","Шаймарданова РамиляФатхутдиновна"]
[null,"МБОУ\"Князевская СОШ\"","Гайнутдинова","Залина","Ильдусовна",6,"призер","Фарахова РамилаЯхиновна"]
[null,"МБОУ \"СОШ пос.Новый\"  ","Василов","Мурат","Линарович",6,"призер","Ибрагимова Рания Зульфатовна"]
[null,"МБОУ \"Шильнебашская СОШ \" ","Марданов ","Ильдус"," Хамитович",6,"призер","Исхакова Рамзия Талгатовна"]
[null,"МБОУ\"Новотроицкая СОШ\"","Тураханова","Радна","Ридаловна",6,"призер","Мавлиева  Кавсария Зигангировна"]
[null,"МБОУ \"СОШ пос.Новый\"  ","Халикова ","Алина","Радифовна",7,"призер","Мавзютова Разидя Гайсовна"]
[null,"МБОУ\"Новотроицкая СОШ\"","Габидуллина","Альбина","Дамировна",7,"призер","Мавлиева  Кавсария Зигангировна"]
[null," МБОУ «Малошильнинская СОШ»  ","Дияров","Рафаэль","Ильшатович",8,"призер","Каримова Алсу Шарипьяновна"]
[null," МБОУ «Малошильнинская СОШ»  ","Садыкова","Диана","Ильшатовна",8,"призер","Каримова Алсу Шарипьяновна"]
[null,"МБОУ \"СОШ пос.Новый\"  ","Фазулзянова ","Динара ","Маратовна",8,"призер","Ибрагимова Рания Зульфатовна"]
[null,"МБОУ \"Комсомольская СОШ\"","Валиуллина","Изалия","Ильсуровна",8,"призер","Адиева Назлия Фанисовна"]
[null,"МБОУ \"Князевская СОШ \" ","Камалдинова","Гульназ","Ришатовна",8,"призер","Шаймарданова РамиляФатхутдиновна"]
[null,"МБОУ\"Новотроицкая СОШ\"","Мустафина ","Альмира","Ильсуровна",10,"призер","Мавлиева  Кавсария Зигангировна"]
[null,"МБОУ «СОШ пос. Круглое Поле» ","Сафиуллина","Лиана","Врежовна",10,"призер","Валиахметова Фидания Фаиловна"]
[null,"МБОУ «СОШ пос. Круглое Поле» ","Усманова ","Элина","Айдаровна",11,"призер","Валиахметова Фидания Фаиловна"]
[null,"МБОУ\"Новотроицкая СОШ\"","Хамидуллин","Райнур","Радикович",11,"призер","Мавлиева  Кавсария Зигангировна"]
["Татарский язык (русскоязыч.)        6/15                      участников- 38  ","МБОУ \"Новотроицкая СОШ\" ","Лаптев","Валерий","Николаевич",4,"победитель","Усманова Гульфия Габдельфаритовна"]
[null,"МБОУ \"Новотроицкая СОШ\" ","Зуева","Анастасия ","Николаевна",5,"победитель","Гиздатуллина Диляра Миннебаевна"]
[null,"МБОУ\"Князевская СОШ\"","Ерхова","Полина","Дмитриевна",6,"победитель","Фарахова РамилаЯхиновна"]
[null,"МБОУ \"Новотроицкая СОШ\" ","Углева","Карина","Артемовна",7,"победитель","Усманова Гульфия Габдельфаритовна"]
[null," МБОУ \"Бетькинская СОШ\"","Бисенко","Арина","Эдуардовна",8,"победитель","Исламова Миляуша Хасановна"]
[null," МБОУ \"Бетькинская СОШ\"","Шиворова","Ксения","Петровна",9,"победитель","Шарапова Рамиля Мударисовна"]
[null,"МБОУ \"СОШ пос.Новый\" ","Мусаев ","Садрудин","Магомедович",4,"призер","Ибрагимова Рания Зульфатовна"]
[null," МБОУ «Малошильнинская СОШ\" ","Кокташева","Эльнара","Руслановна",4,"призер","Каримова Алсу Шарипьяновна"]
[null,"МБОУ \"Новотроицкая СОШ\" ","Никитина","Елизавета","Рамилевна",5,"призер","Усманова Гульфия Габдельфаритовна"]
[null,"МБОУ \"СОШ пос.Новый\" ","Козлов ","Тимур","Александрович",5,"призер","Ибрагимова Рания Зульфатовна"]
[null," МБОУ \"Тлянче-Тамакская СОШ\"","Колузаева","Алёна","Николаевна",5,"призер","Исхакова Роза Загидулловна"]
[null,"МБОУ \"Князевская СОШ\"","Любокаев","Илья ","Алексеевич",5,"призер","Шаймарданова  Рамиля Фатхутдиновна"]
[null," МБОУ «Малошильнинская СОШ\" ","Кузнецова","Валерия","Сергеевна",5,"призер","Каримова Алсу Шарипьяновна"]
[null," МБОУ \"Тлянче-Тамакская СОШ\"","Норбоев","Ильхам","Ойбекович",6,"призер","Исхакова Роза Загидулловна"]
[null," МБОУ \"Тлянче-Тамакская СОШ\"","Оганисян","Ваче","Аркадиевич",7,"призер","Исхакова Роза Загидулловна"]
[null,"МБОУ \"Комсомольская СОШ\"","Васильева","Карина","Артемовна",9,"призер","Галимова Мадина Максудовна"]
[null,"МБОУ \"Новотроицкая СОШ\" ","Драгунова","Маргарита","Владимировна",9,"призер","Усманова Гульфия Габдельфаритовна"]
[null,"МБОУ \"СОШ пос.Новый\" ","Иванова","Регина","Сергеевна",9,"призер","Ибрагимова Рания Зульфатовна"]
[null," МБОУ \"Тлянче-Тамакская СОШ\"","Колузаев","Никита","Николаевич",9,"призер","Исхакова Роза Загидулловна"]
[null," МБОУ «Малошильнинская СОШ\" ","Гаврилова ","Ангелина","Евгеньевна",9,"призер","Каримова Алсу Шарипьяновна"]
[null," МБОУ «Малошильнинская СОШ\" ","Сальникова ","Карина","Александровна",9,"призер","Каримова Алсу Шарипьяновна"]
["Родная литер. (т.ш.)  5/8             участников-19","МБОУ \"Кузкеевская СОШ\"","Авзалова","Лейла","Ильшатовна",7,"победитель","Умнова Лилия Ивановна"]
[null,"МБОУ \"Мусабай-Заводская  СОШ\"","Фаррахова","Ралина","Инзировна",8,"победитель","Саитова Земфира Марсовна"]
[null,"МБОУ \"Нижнесуыксинская СОШ\"","Ахметзянова","Алия","Азатовна",9,"победитель","Низамова Зиля Мирзагитовна"]
[null,"МБОУ \"Кузкеевская СОШ\"","Салахова","Назиля","Фиргатовна",10,"победитель","Авзалова Назиля Фаннуровна"]
[null,"МБОУ \"Кузкеевская СОШ\"","Ризатдинова","Сюмбель","Фарисовна",11,"победитель","Кашапова ЭльмираМухаметназиповна"]
[null,"МБОУ \"Нижнесуыксинская СОШ\"","Файрушин","Ильнур","Рубинович",7,"призер","Низамова Зиля Мирзагитовна"]
[null,"МБОУ \"Кузкеевская СОШ\"","Низамов","Ильдар","Ильгизович",7,"призер","Авзалова Назиля Фаннуровна"]
[null,"МБОУ \"Мусабай-Заводская  СОШ\"","Гараева ","Ландыш","Рамилевна",7,"призер","Саитова Земфира Марсовна"]
[null,"МБОУ \"Нижнесуыксинская СОШ\"","Низамова","Рузиля","Ильшатовна",8,"призер","Низамова Зиля Мирзагитовна"]
[null,"МБОУ \"Мелекесская СОШ\"","Исламова","Риана"," ",8,"призер","Умнова Лилия Ивановна"]
[null,"МБОУ \"Кузкеевская СОШ\"","Муллахметова","Диляра","Фанилевна",8,"призер","Кашапова ЭльмираМухаметназиповна"]
[null,"МБОУ \"Мелекесская СОШ\"","Саттарова ","Анна ","Эдуардовна",9,"призер","Умнова Лилия Ивановна"]
[null,"МБОУ \"Нижнесуыксинская СОШ\"","Арсентьева","Анастасия","Алексеевна",10,"призер","Низамова Зиля Мирзагитовна"]
["Родная литер. (р.ш.)  3/0             участников-9","МБОУ \"СОШ пос.Новый\" ","Гатина","Камилла","Фаргатовна",8,"победитель","Ибрагимова Рания Зульфатовна"]
[null,"МБОУ\"Новотроицкая СОШ\"","Шакирова","Чулпан","Ринатовна",9,"победитель","Мавлиева Кавсария Зигангировна"]
[null,"МБОУ\"Новотроицкая СОШ\"","Мустафина","Альмира","Ильсуровна",10,"победитель","Мавлиева Кавсария Зигангировна"]
["Родной язык (т.ш.)  8/40              участников- 74","МБОУ \"Бурдинская СОШ\"","Казанцева","Есения","Родионовна",4,"победитель","Маслова Елена Андреевна"]
[null,"МБОУ \"Калмашская СОШ\"","Хайбуллина","Азалия","Ленаровна",5,"победитель","Бурганова Гульнара Насимовна"]
[null,"МБОУ \"Нижнесуыксинская СОШ\"","Ганиева","Сюмбель","Айнуровна",6,"победитель","Низамова Зиля Мирзагитовна"]
[null,"МБОУ \"Кузкеевская СОШ\"","Авзалова","Лейла","Ильшатовна",7,"победитель","Авзалова Назиля Фаннуровна"]
[null,"МБОУ \"Мусабай-Заводская  СОШ\"","Фаррахова","Ралина","Инзировна",8,"победитель","Саитова Земфира Марсовна"]
[null,"МБОУ \"Тлянче-Тамакская СОШ\"","Тухбатуллина","Лилия","Равилевна",9,"победитель","Ямалиева Лайсан Флеровна"]
[null,"МБОУ \"Кузкеевская СОШ\"","Галиева","Гульназ","Ильнуровна",10,"победитель","Авзалова Назиля Фаннуровна"]
[null,"МБОУ \"Кузкеевская СОШ\"","Сахипгараева","Язиля","Айратовна",11,"победитель","Кашапова ЭльмираМухаметназиповна"]
[null,"МБОУ\"Биюрганская ООШ\"","Фаттахова","Айзира","Ильнаровна",4,"призер","Гильмутдинова Диляра Галимзяновна"]
[null,"МБОУ \"Нижнесуыксинская СОШ\"","Шайхетдинова","Иделия","Рамилевна",4,"призер","Сафина Рушания Ривкатовна"]
[null,"МБОУ \"Нижнесуыксинская СОШ\"","Хамидуллина","Илюза","Ильшатовна",4,"призер","Сафина Рушания Ривкатовна"]
[null,"МБОУ \"Нижнесуыксинская СОШ\"","Давлетшин","Адель ","Рустемович",4,"призер","Сафина Рушания Ривкатовна"]
[null,"МБОУ \"Мусабай-Заводская СОШ\"","Шакирова","Илина",null,4,"призер","Гилязова Резеда Флеровна"]
[null,"МБОУ \"Мелекесская СОШ\"","Самойлова ","София ","Валерьевна",5,"призер","Умнова Лилия Ивановна"]
[null,"МБОУ\"Биюрганская ООШ\"","Ахметова","Залина","Ирековна",5,"призер","Мулланурова Айсылу Мударрисовна"]
[null,"МБОУ \"Калмашская СОШ\"","Шамитова","Иделия","Альбертовна",5,"призер","Бурганова Гульнара Насимовна"]
[null,"МБОУ \"Кузкеевская СОШ\"","Габдуллина","Розалия","Регантовна",5,"призер","Авзалова Назиля Фаннуровна"]
[null,"МБОУ \"Мусабай-Заводская  СОШ\"","Королева","Карина","Булатовна",5,"призер","Вильданова Лилия Равиловна"]
[null,"МБОУ \"Мусабай-Заводская  СОШ\"","Нуртдинова","Дания","Ильсеяровна",5,"призер","Вильданова Лилия Равиловна"]
[null,"МБОУ \"Мусабай-Заводская  СОШ\"","Вильданова ","Джамиля","Фаргатовна",5,"призер","Вильданова Лилия Равиловна"]
[null,"МБОУ \"Нижнесуыксинская СОШ\"","Арсланова","Диляра","Рафаэлевна",5,"призер","Низамова Зиля Мирзагитовна"]
[null,"МБОУ \"Кузкеевская СОШ\"","Кашапова","Айзиля","Ильназовна",6,"призер","Авзалова Назиля Фаннуровна"]
[null,"МБОУ\"Биюрганская ООШ\"","Фаттахова","Алина","Ильнаровна",6,"призер","Мулланурова Айсылу Мударрисовна"]
[null,"МБОУ \"Мелекесская СОШ\"","Саттарова ","Мария  ","Эдуардовна",6,"призер","Умнова Лилия Ивановна"]
[null,"МБОУ \"Яна Булякская ООШ\"   ","Ахунова ","Айсылу","Рамилевна",6,"призер","Назмутдинова Зульфия Гадановна"]
[null,"МБОУ\" Иштеряковская ООШ\"","Закирова","Залия","Рустемовна",7,"призер","Хаертдинова Венера Навасовна"]
[null,"МБОУ\" Иштеряковская ООШ\"","Нургалеева","Алсу","Ильшатовна",7,"призер","Хаертдинова Венера Навасовна"]
[null,"МБОУ \"Калмашская СОШ\"","Сарычева","Альбина","Алексеевна",7,"призер","Бурганова Гульнара Насимовна"]
[null,"МБОУ \"Кузкеевская СОШ\"","Низамов","Ильдар","Ильгизович",7,"призер","Авзалова Назиля Фаннуровна"]
[null,"МБОУ \"Нижнесуыксинская СОШ\"","Ахметзянова","Алина","Ильдаровна",7,"призер","Низамова Зиля Мирзагитовна"]
[null,"МБОУ \"Мелекесская СОШ\"","Андреева ","Диана ","Руслановна",7,"призер","Умнова Лилия Ивановна"]
[null,"МБОУ \"Яна Булякская ООШ\"   ","Бадертдинов","Алмаз","Асгатович",7,"призер","Назмутдинова Зульфия Гадановна"]
[null,"МБОУ \"Мелекесская СОШ\"","Исламова","Риана","Ануровна",8,"призер","Умнова Лилия Ивановна"]
[null,"МБОУ \"Нижнесуыксинская СОШ\"","Низамова ","Рузиля","Ильшатовна",8,"призер","Низамова Зиля Мирзагитовна"]
[null,"МБОУ\"Старо-Абдуловская СОШ\"","Насырова","Ралия","Мунировна",8,"призер","Фарваева Резеда Анваровна"]
[null,"МБОУ\"Старо-Абдуловская СОШ\"","Маннапова ","Алина","Марселевна",8,"призер","Фарваева Резеда Анваровна"]
[null,"МБОУ \"Тлянче-Тамакская СОШ\"","Калимуллина","Алиса","Айдаровна",8,"призер","Ямалиева Лайсан Флеровна"]
[null,"МБОУ\"Биюрганская ООШ\"","Ахметова","Алина","Ирековна",9,"призер","Мулланурова Айсылу Мударрисовна"]
[null,"МБОУ \"Бурдинская СОШ\"","Чернов","Валентин","Валерианович",9,"призер","Саитова Земфира Марсовна"]
[null,"МБОУ \"Бурдинская СОШ\"","Ахметзянов","Ильшат","Ленарович",9,"призер","Саитова Земфира Марсовна"]
[null,"МБОУ\"Семекеевская ООШ\"","Файрушина","Зилия","Равилевна",9,"призер","Ханипова Гулуза Гарифовна"]
[null,"МБОУ \"Тлянче-Тамакская СОШ\"","Султанова","Зилия ","Ирековна",9,"призер","Ямалиева Лайсан Флеровна"]
[null,"МБОУ \"Нижнесуыксинская СОШ\"","Арсентьева","Анастасия","Алексеевна",10,"призер","Низамова Зиля Мирзагитовна"]
[null,"МБОУ \"Кузкеевская СОШ\"","Ризатдинова","Чулпан","Фарисовна",11,"призер","Кашапова ЭльмираМухаметназиповна"]
[null,"МБОУ \"Кузкеевская СОШ\"","Гайнутдинов","Булат","Ильгизарович",11,"призер","Кашапова ЭльмираМухаметназиповна"]
[null,"МБОУ \"Кузкеевская СОШ\"","Ахтямова","Дина","Айдаровна",11,"призер","Кашапова ЭльмираМухаметназиповна"]
[null,"МБОУ \"Нижнесуыксинская СОШ\"","Фардиев","Раиль","Рамилевич",11,"призер","Низамова Зиля Мирзагитовна"]
[null,"МБОУ \"Тлянче-Тамакская СОШ\"","Идрисова","Динара","Рустамовна",11,"призер","Ямалиева Лайсан Флеровна"]
["Химия  участ.-20","НЕТ"]
["право  участ.-17          ","НЕТ"]
["экономика    участников-10","НЕТ"]
["История Татарстана  участников-7","НЕТ"]
["МХК участ-11","НЕТ"]
["Методист  Хусаинова А.А.",null," "]
["88552-70-35-06"]

{"sheet":"сравн.анализ","index":1,"n_rows":33,"n_cols":9,"rows_kept":33,"merged":[[0,0,0,8],[1,1,1,2],[1,3,1,7],[20,0,20,4]]}
["Сравнительный анализ муниципального этапа  олимпиады по количеству победителей и призеров "]
["Средние школы","  2019-2020  ",null,"  2020-2021"]
[null,"Кол-во побед./приз. ","рейтинг  ","Кол-во побед./приз. ","рейтинг по количеству побед./приз.   ",null,"всего  участников","Доля","рейтинг по качеству"]
[" Нижнесуыксинская  ","5/12","3","8/21",1,null,95,30.5,"6"]
[" Новотроицкая  ","3/5","10","12/16",2,null,117,23.9,"11"]
[" Малошильнинская  ","11/3","5","12/15",3,null,120,22.5,"12"]
[" Князевская  ","8/10","2","8/19",3,null,81,33.3,"5"]
[" Кузкеевская  ","7/10","3","10/16",4,null,62,41.9,"1"]
[" Тлянче-Тамакская  ","6/7","7","3/21","5",null,66,36.4,"3"]
[" СОШ пос. Новый","8/8","4","7/16","6",null,77,29.8,"7"]
[" Мелекесская  ","3/11","6","7/16","6",null,80,"28,7","8"]
["Мусабай-Заводская","6/14","1","5/14",7,null,56,33.9,"4"]
[" Бетькинская  ","9/3","8","14/5","7",null,73,"26,0","9"]
[" Шильнебашская  ","2/7","9","3/12",8,null,41,36.6,"2"]
[" СОШ п.Круглое Поле","3/3","12","6/8",9,null,54,20.4,"14"]
[" Калмашская  ","0/7","11","4/7",10,null,40,27.5,"8"]
[" Комсомольская  ","3/6","9","3/8",10,null,50,"22,0","13"]
[" Бурдинская  ","3/2","13","3/6",11,null,27,33.3,"5"]
[" Биклянская  ","2/4","12","2/5",12,null,29,24.1,"10"]
["Старо-Абдуловская  ","1/3","14","0/4",13,null,23,17.4,"15"]
["Основные школы"]
["Семекеевская ООШ","3/7","1","2/6",1,null,29,27.5,2]
["Яна Булякская ООШ","1/3","3","1/4",2,null,15,33.3,1]
["Иштеряковская ООШ","0/3","4","0/4",3,null,16,"25,0",3]
["Биюрганская ООШ","0/2","5","0/4",3,null,17,23.5,4]
["Калмиинская ООШ","0/7","2","0/3",4,null,9,33.3,1]
[]
[]
[]
[]
[]
["Методист  Хусаинова А.А.",null," "]
["88552-70-35-06",{"$nulls":4},"Рез-ты пока 4-х олимпиад(астрон.,матем,,экономика,право"]

{"sheet":"Путь к Олимп.","index":2,"n_rows":32,"n_cols":5,"rows_kept":32,"merged":[[1,0,1,4],[8,0,8,4],[18,0,18,4],[28,0,28,4]]}
[]
["Результаты заключительного этапа республиканской олимпиады \"Путь к Олимпу\"2017-2018 уч год                          "]
["Школа","Участник","предмет","Учитель","Результат"]
["Бурдинская СОШ","Чернов Валентин","математика","Утяшова В.Н.","призер"]
["Малошильнинская СОШ","Садриева Резеда","химия","Мифтахова З.Р.","призер"]
["Комсомольская СОШ","Петров Виктор","химия","Юнусова Г.Л.","призер"]
["Малошильнинская СОШ","Александрова Ирина","английский язык","Асанова Ю.Г.","призер"]
[]
["Результаты заключительного этапа республиканской олимпиады \"Путь к Олимпу\"2018-2019 уч год                          "]
["Школа","Участник","предмет","Учитель","Результат"]
["Бетькинская","Камалитдинов Руслан","физика","Лысенков А.В.","призер"]
["Бурдинская ","Чернов Валентин","математика","Шарипова Г.А.","призер"]
["Князевская  ","Муратова Айгуль","математика","Сайфетдинова Г.В.","призер"]
["Бетькинская  ","Стрыгина Алиса","английский язык","Нурханова Л.Д.","победитель"]
["Малошильнинская  ","Александрова Ирина","английский язык","Ларичева К.А.","призер"]
["Малошильнинская  ","Садриева Резеда","химия","Мифтахова З.Р.","призер"]
["Комсомольская  ","Петров Виктор","химия","Юнусова Г.Л.","призер"]
[]
["Результаты заключительного этапа республиканской олимпиады \"Путь к Олимпу\"2019-2020 уч год                          "]
["Малошильнинская  ","Александрова Ирина","физика","Киямова Ф.М.","призер"]
["Князевская  ","Абсалямов Артур","физика","Якушева В.Н.","призер"]
["СОШ п.Круглое Поле","Тимошев Дамир","английский язык","Шкабарева А.С.","призер"]
["Бетькинская  ","Стрыгина Алиса","английский язык","Нурханова Л.Д.","призер"]
["Малошильнинская  ","Александрова Ирина","английский язык","Ситдикова Д.Р.","призер"]
["Бурдинская  ","Чернов Валентин","математика","Дусманова А.В.","призер"]
["Нижнесуыксинская  ","Фардиев Раиль","математика","Суюндукова Ф.Н.","призер"]
["Князевская  ","Муратова Айгуль","математика","Сайфетдинова Г.В.","призер"]
[]
["Результаты заключительного этапа республиканской олимпиады \"Путь к Олимпу\"2020-2021 уч год                          "]
["Малошильнинская  ","Садриева Резеда","химия","Красноперова Г.М.","призер"]
["Новотроицкая ","Ферофонтов Антон","английский язык","Гараева Р. Ф.","призер"]
["Бурдинская","Чернов Валентин","математика","Дусманова А.В.","призер"]

{"sheet":"регион.этап","index":3,"n_rows":17,"n_cols":5,"rows_kept":17,"merged":[[1,0,1,4]]}
[]
["  Итоги республиканского этапа олимпиад(победители, призеры)"]
["школа","2017-2018г. (3 призера)","       2018-2019г.                                            (1 побед. 2 призера)","                2019-2020г.                                    (4 призера)","                  2020-2021г.                                       ( 1 победитель,8 призеров) "]
["Мусабай-Заводская  СОШ","Хакимова М. (рус литер)  Учитель Марсалова Г.М.",null,"Вильданова Камиля (татар теле) Учитель Вильданова Л.Р."]
["Старо-Абдуловская  СОШ ",null,"Мавлявиева Гульгена(татар теле һәм әдәбият(КФУ-ЕГПУ-победитель                                   Учитель Вахитова Е.П."]
["СОШ п.Новый","Бариев Т.Б. (биология)     Учитель Миннигулова Г.Р. ","Бариев Тимур (призер,биология)    Учитель Миннигулова Г.Р. "]
["СОШ п.Круглое Поле","Тимошев Д. (англ.яз)               Учитель Орловская Л.С"]
["Бурдинская СОШ",null,"Чернов Валентин (призер, рус. язык)  УчительЧернова Э.А.","Чернов Валентин  (рус. язык)   УчительЧернова Э.А.                  Чернов Валентин (рус.литерат.)  УчительЧернова Э.А","Чернов Валентин  (рус. язык)   УчительЧернова Э.А.                                   Чернов Валентин (рус.литерат.)  УчительЧернова Э.А"]
["Семекеевская ООШ",null,null,"Сибгатуллина Азалия (рус.язык) Учитель Ситдикова В.Н.","Сибгатуллина Азалия (биология)   Учитель Сагитова Л.Р.                всерос.олимпиада"]
["Малошильнинская СОШ",{"$nulls":3},"Александрова Ирина (обществ)                    Учитель Михайлова Г.Р.                             всерос.олимпиада"]
["Кузкеевская СОШ",{"$nulls":3},"Сахипгараева Язиля (татар теле)                  Учитель Кашапова Э.М.                                               Сахипгараева Язиля (Халыкара олимп.,татар теле)-победитель.                                       Учитель Кашапова Э.М."]
["Князевская СОШ",{"$nulls":3},"Хаматов Даниль (англ.язык)                  Учитель Елкина Н.М."]
["Новотроицкая СОШ",{"$nulls":3},"Лаптев Валерий (татар теле)                           Учитель Усманова Г.Ф."]
["Мелекесская СОШ",{"$nulls":3},"Хазиев Равиль (геология)                                   Учитель Иванова Ч.В."]
[]
[{"$nulls":3},"Методист Хусаинова А.А."]
[{"$nulls":3},"88552-70-35-06"]